bitfinex/quotes_ETHUSD_20230830
["timestamp","ask_amount","ask_price","bid_price","bid_amount"]
[1693402598301,5.81808,1718.8,1718.5,11.63787]
[1693402598818,8.8168,1719.2,1718.5,17.45689]
[1693402599035,8.69073065,1719.1,1718.5,17.45689]
[1693402599175,8.69073065,1719.1,1718.7,11.63636]
[1693402599629,14.50798065,1719.1,1718.7,11.63636]
[1693402599826,14.50798065,1719.1,1718.6,11.637]
[1693402599827,20.32523065,1719.1,1718.6,11.637]
[1693402599989,20.32523065,1719.1,1718.7,5.81829]
[1693402600506,20.32523065,1719.1,1718.7,11.63664]
[1693402600705,2.03252307,1719.0,1718.7,5.81829]
[1693402601042,8.69115065,1718.9,1718.6,11.63697]
[1693402601187,14.50882065,1718.9,1718.6,5.81848]
[1693402601386,14.50882065,1718.9,1718.5,5.81884]
[1693402601602,20.32649065,1718.9,1718.5,5.81884]
[1693402601804,13.66894907,1718.8,1718.5,5.81884]
[1693402601977,13.66894907,1718.8,1718.4,35.7992]
[1693402601978,2.87348065,1718.7,1718.4,35.7992]
[1693402602172,2.87348065,1718.7,1718.4,29.98]
[1693402602173,5.81868,1718.6,1718.4,29.98]
[1693402602441,2.87348065,1718.5,1718.4,29.98]
[1693402602620,14.51152065,1718.5,1718.2,5.82001]
[1693402602782,14.51152065,1718.5,1717.9,32.2177]
[1693402602783,1.45115207,1718.4,1717.9,32.2177]
[1693402602989,20.33305065,1718.3,1717.8,5.82111]
[1693402603225,20.33305065,1718.3,1717.9,5.821]
[1693402604828,20.33305065,1718.3,1717.9,11.64206]
[1693402605432,20.33305065,1718.3,1717.7,29.98]
[1693402605590,2.03330507,1718.2,1717.7,35.80153]
[1693402605935,20.33500065,1718.1,1717.7,41.62326]
[1693402606087,1.45115207,1718.4,1717.7,17.46499]
[1693402606286,1.45115207,1718.4,1717.9,17.46234]
[1693402606287,15.96375272,1718.4,1717.9,17.46234]
[1693402606511,10.28963592,1718.3,1717.9,17.46234]
[1693402606712,5.82005,1718.2,1717.9,11.64156]
[1693402607635,14.51358065,1718.2,1717.9,5.82078]
[1693402607833,14.51358065,1718.2,1717.8,11.86940358]
[1693402607834,20.33363065,1718.2,1717.8,6.04806358]
[1693402607997,1.45135807,1718.1,1717.8,6.04806358]
[1693402608204,8.69353065,1718.2,1717.8,11.86945358]
[1693402608390,14.51371065,1718.2,1717.8,17.69084358]
[1693402609170,8.69353065,1718.2,1717.8,17.69084358]
[1693402609633,2.87348065,1718.1,1717.8,6.04806358]
[1693402609816,5.82072,1718.0,1717.8,6.04806358]
[1693402610001,5.82072,1718.0,1717.8,0.22682358]
[1693402610203,20.33564065,1718.0,1717.8,0.22682358]
[1693402610845,20.33564065,1718.0,1717.6,13.88139]
[1693402611144,22.45614002,1718.0,1717.6,11.64369]
[1693402611528,22.45614002,1718.0,1717.6,5.82183]
[1693402611706,2.87348065,1717.9,1717.5,5.82221]
[1693402611904,17.46438,1717.8,1717.4,29.98]
[1693402612105,4.61991865,1717.7,1717.4,29.98]
[1693402612422,2.87348065,1717.7,1717.4,17.4682]
[1693402612589,11.64264,1717.9,1717.4,17.4682]
[1693402613088,5.8218,1717.7,1717.4,5.8227]
[1693402613295,2.87348065,1717.6,1717.4,5.8227]
[1693402613802,8.69558065,1717.6,1717.4,5.8227]
[1693402613984,9.57615602,1717.6,1717.2,8.10156]
[1693402614192,21.22035602,1717.6,1717.0,35.80395]
[1693402614387,2.87348065,1717.2,1716.8,29.98]
[1693402614592,17.47145,1717.1,1716.8,29.98]
[1693402614791,17.47145,1717.1,1716.5,5.82558]
[1693402614792,2.87348065,1717.0,1716.5,41.6312]
[1693402615015,5.82445,1716.9,1716.6,5.82543]
[1693402615221,2.87348065,1716.8,1716.6,5.82543]
[1693402615529,5.82328,1717.3,1716.6,23.58835]
[1693402615734,11.64516,1717.5,1716.8,23.29805]
[1693402615901,2.87348065,1717.4,1716.8,23.29805]
[1693402616092,8.82183,1717.7,1716.9,5.156805]
[1693402616093,5.82183,1717.7,1716.9,5.156805]
[1693402616293,2.87348065,1717.6,1717.1,23.29452]
[1693402616593,11.64372,1717.7,1717.1,26.70387117]
[1693402616594,5.82183,1717.7,1717.1,26.70387117]
[1693402616820,8.69531065,1717.7,1717.2,0.48]
[1693402617058,2.87348065,1717.6,1717.3,5.82292]
[1693402617258,6.97903913,1717.6,1717.3,5.82292]
[1693402617554,5.82115,1717.9,1717.3,20.2961]
[1693402617860,14.51581065,1717.9,1717.3,20.2961]
[1693402618013,2.87348065,1717.8,1717.3,17.4691]
[1693402618216,5.8219,1717.7,1717.3,11.64601]
[1693402618452,5.82241,1717.5,1717.2,5.82341]
[1693402618665,11.64482,1717.5,1717.2,5.82341]
[1693402618822,14.51830065,1717.5,1717.1,5.82354]
[1693402619173,8.69589065,1717.5,1717.1,5.82354]
[1693402619323,5.82181,1717.7,1717.2,0.582354]
[1693402619516,8.69529065,1717.7,1717.3,17.46893]
[1693402619760,2.87348065,1717.7,1717.3,17.46893]
[1693402620264,5.82143,1717.8,1717.3,17.46893]
[1693402620421,8.69491065,1717.8,1717.3,17.46893]
[1693402620628,8.69491065,1717.8,1717.3,5.82292]
[1693402620629,2.87348065,1717.7,1717.3,5.82292]
[1693402620946,17.46636,1717.6,1717.3,5.82299]
[1693402621263,8.69599065,1717.5,1717.3,5.82299]
[1693402621626,14.51850065,1717.5,1717.4,0.18474011]
[1693402621823,2.87348065,1717.5,1717.4,0.18474011]
[1693402622026,2.87348065,1717.5,1717.3,5.82286]
[1693402622027,8.69589065,1717.5,1717.3,5.82286]
[1693402622237,21.79250972,1717.5,1717.1,5.82365]
[1693402622449,21.79250972,1717.5,1717.0,5.82392]
[1693402622659,21.79250972,1717.5,1717.0,17.47198]
[1693402622660,10.14768972,1717.5,1717.0,17.47198]
[1693402622959,8.69589065,1717.5,1717.0,17.47198]
[1693402623262,2.87348065,1717.4,1716.8,2.11334497]
[1693402623465,2.87348065,1717.4,1716.7,30.87337917]
[1693402623466,26.34356065,1717.3,1716.7,29.98]
[1693402623620,26.34356065,1717.3,1716.5,41.63139]
[1693402623621,2.87348065,1716.9,1716.5,41.63139]
[1693402623960,17.47455,1716.8,1716.4,0.1]
[1693402624164,5.82546,1716.6,1716.4,0.1]
[1693402624406,8.69928065,1716.5,1716.4,0.1]
[1693402624603,20.35088065,1716.5,1716.4,0.1]
[1693402624788,2.61725207,1716.8,1716.5,0.60738998]
[1693402624789,5.82496,1716.8,1716.5,0.60738998]
[1693402624988,2.87348065,1716.7,1716.5,0.60738998]
[1693402625304,2.87348065,1716.7,1716.5,6.43309998]
[1693402625512,2.87348065,1716.7,1716.5,6.33309998]
[1693402625677,6.0,1717.1,1716.5,19.22062398]
[1693402625678,8.82392,1717.1,1716.5,19.22062398]
[1693402625879,2.87348065,1717.1,1716.6,2.827]
[1693402626100,5.82218,1717.6,1716.8,2.827]
[1693402626296,5.82218,1717.6,1717.1,11.64754]
[1693402626297,5.82242,1717.5,1717.1,11.64754]
[1693402626881,2.87348065,1717.4,1717.0,5.82384]
[1693402627079,2.87348065,1717.4,1716.9,5.82438]
[1693402627080,11.64625,1717.3,1716.9,5.82438]
[1693402627280,2.87348065,1717.2,1716.9,5.82438]
[1693402627491,8.69699065,1717.2,1716.9,5.82438]
[1693402627712,2.87348065,1717.2,1716.9,11.64883]
[1693402628029,11.64602,1717.4,1716.9,19.22062]
[1693402628171,5.82328,1717.3,1716.9,5.82438]
[1693402628605,11.64661,1717.3,1716.9,5.82438]
[1693402628808,11.64661,1717.3,1716.7,29.98]
[1693402628809,20.46994,1717.3,1716.7,29.98]
[1693402629013,3.58235117,1717.2,1716.4,0.1]
[1693402629219,2.87348065,1716.6,1716.4,0.1]
[1693402629502,5.82485,1716.8,1716.4,17.57841]
[1693402629720,2.87348065,1716.7,1716.4,17.57841]
[1693402629873,5.82427,1717.0,1716.4,20.40541]
[1693402630079,8.69775065,1717.0,1716.5,2.040541]
[1693402630290,5.82361,1717.2,1716.6,20.30304]
[1693402630484,2.87348065,1717.1,1716.6,20.30304]
[1693402630777,2.87348065,1717.1,1716.6,17.47604]
[1693402630778,8.69730065,1717.1,1716.6,17.47604]
[1693402631607,2.87348065,1717.0,1716.4,5.92582]
[1693402631842,11.64917,1716.9,1716.4,12.927173]
[1693402632044,2.87348065,1716.8,1716.4,12.927173]
[1693402632207,8.69845065,1716.8,1716.4,12.927173]
[1693402632632,8.69845065,1716.8,1716.4,18.753313]
[1693402632827,5.82445,1716.9,1716.5,1.8753313]
[1693402632998,2.87348065,1716.8,1716.5,5.8258]
[1693402633199,8.69842065,1716.8,1716.5,5.8258]
[1693402633602,8.69842065,1716.8,1716.4,5.92599]
[1693402633800,11.65092,1716.6,1716.4,0.1]
[1693402634050,3.0,1717.1,1716.4,0.1]
[1693402634203,11.6493,1716.9,1716.4,18.171065]
[1693402634398,8.69830065,1716.8,1716.4,18.171065]
[1693402635438,1.28152552,1717.1,1716.4,18.171065]
[1693402635439,5.82397,1717.1,1716.5,0.48]
[1693402635607,2.87348065,1717.1,1716.7,17.47527]
[1693402635800,8.69735065,1717.1,1716.7,17.47527]
[1693402636111,0.47028369,1717.4,1716.7,17.47527]
[1693402636112,5.82302,1717.4,1716.7,19.505497]
[1693402636319,2.87348065,1717.3,1716.7,22.332497]
[1693402636652,14.51982065,1717.3,1716.9,11.64858]
[1693402637704,8.69665065,1717.3,1716.9,11.64858]
[1693402637937,8.69665065,1717.3,1716.9,17.47303]
[1693402638159,5.82256,1717.5,1716.9,22.64913987]
[1693402638305,8.69604065,1717.5,1717.0,0.48]
[1693402638650,14.51859065,1717.5,1717.1,11.6472]
[1693402639449,8.69603065,1717.5,1717.1,17.47097]
[1693402639645,8.69590065,1717.5,1717.1,18.32747433]
[1693402639847,2.87348065,1717.4,1717.1,11.6472]
[1693402640047,5.82309,1717.3,1717.1,5.8236]
[1693402640349,8.69640065,1717.4,1716.8,6.01805867]
[1693402640350,17.47131,1717.1,1716.8,0.19340867]
[1693402640653,2.87348065,1717.0,1716.8,0.19340867]
[1693402640818,8.69773065,1717.0,1716.8,0.19340867]
[1693402641010,14.52198065,1717.0,1716.8,0.19340867]
[1693402641345,22.38080571,1717.0,1716.8,0.19340867]
[1693402641551,14.52198065,1717.0,1716.6,5.82524]
[1693402641709,8.69773065,1717.0,1716.8,5.82476]
[1693402642618,14.52184065,1717.0,1716.6,5.82529]
[1693402642863,20.34595065,1717.0,1716.4,5.92601]
[1693402643153,20.34595065,1717.0,1716.4,11.75227]
[1693402643558,2.03459507,1716.9,1716.4,0.1]
[1693402643725,20.34833065,1716.8,1716.4,0.1]
[1693402645439,2.87348065,1716.7,1716.4,0.1]
[1693402645624,23.30184,1716.6,1716.4,0.1]
[1693402645825,20.35088065,1716.5,1716.4,0.1]
[1693402646025,23.85106072,1716.5,1716.4,0.1]
[1693402646755,8.69928065,1716.5,1716.4,0.1]
[1693402647651,14.52508065,1716.5,1716.4,0.1]
[1693402647851,14.52508065,1716.5,1716.0,29.98]
[1693402647852,3.0,1716.3,1716.0,29.98]
[1693402648052,5.82726,1716.1,1715.8,5.82818]
[1693402648257,8.70074065,1716.1,1715.8,11.65636]
[1693402648944,5.82561,1716.6,1715.8,19.233025]
[1693402649143,5.82561,1716.6,1715.8,19.81537617]
[1693402649144,2.87348065,1716.5,1715.8,19.81537617]
[1693402649351,8.69951065,1716.5,1715.9,3.0]
[1693402649660,14.52554065,1716.5,1716.0,17.48169]
[1693402650169,11.52,1716.8,1716.0,24.17604117]
[1693402650322,14.39348065,1716.8,1716.3,23.30583]
[1693402650524,13.68393507,1716.9,1716.3,23.30583]
[1693402650525,2.03459507,1716.9,1716.3,23.30583]
[1693402650748,2.87348065,1716.9,1716.5,17.47689]
[1693402651124,5.82385,1717.1,1716.5,17.47689]
[1693402651344,2.87348065,1717.0,1716.5,20.88624117]
[1693402651726,2.87348065,1717.0,1716.7,11.65012]
[1693402652181,20.34598065,1717.0,1716.6,6.01202091]
[1693402652342,2.03459807,1716.9,1716.6,0.18680091]
[1693402652542,14.52306065,1716.8,1716.6,0.18680091]
[1693402652758,14.52306065,1716.8,1716.3,5.82637]
[1693402652759,20.34785065,1716.8,1716.3,5.82637]
[1693402652958,20.34785065,1716.8,1716.2,8.05295]
[1693402653539,20.34785065,1716.8,1716.1,8.82684]
[1693402653739,2.03478507,1716.7,1716.1,14.65384]
[1693402653958,20.35051065,1716.6,1716.1,11.65384]
[1693402654175,20.35051065,1716.6,1716.1,11.654]
[1693402654692,20.35051065,1716.6,1716.1,5.82684]
[1693402655392,5.82533,1716.7,1716.2,0.48]
[1693402655618,2.87348065,1716.7,1716.3,17.47901]
[1693402655955,8.69862065,1716.7,1716.3,17.47901]
[1693402656693,8.69862065,1716.7,1716.0,38.68595134]
[1693402656694,2.87348065,1716.6,1716.0,32.2631]
[1693402656867,11.65214,1716.5,1716.0,38.09041]
[1693402657195,2.87348065,1716.4,1716.0,29.98]
[1693402657406,2.87348065,1716.4,1715.7,6.72177917]
[1693402657407,17.47965,1716.3,1715.7,42.23242134]
[1693402657554,2.87348065,1716.2,1715.8,1.01254367]
[1693402657756,11.65446,1716.1,1715.8,1.01254367]
[1693402658058,17.48169,1716.1,1715.7,35.80836]
[1693402658251,11.65568,1715.9,1715.7,31.49885365]
[1693402658452,5.82775,1716.0,1715.7,29.98]
[1693402658697,5.82698,1716.2,1715.8,1.0125656]
[1693402658996,5.82698,1716.2,1715.9,11.65554]
[1693402659197,2.87348065,1716.1,1715.9,11.65554]
[1693402659351,5.82615,1716.4,1715.9,22.058744]
[1693402659808,14.52578065,1716.4,1715.9,22.058744]
[1693402660153,2.87348065,1716.4,1715.9,22.058744]
[1693402660497,5.82616,1716.4,1716.0,1.01244351]
[1693402660699,2.87348065,1716.3,1716.0,11.65466]
[1693402660853,11.65364,1716.2,1715.9,5.82771]
[1693402661049,11.65364,1716.2,1715.8,6.43615386]
[1693402661050,17.48046,1716.2,1715.8,6.43610386]
[1693402661294,2.87348065,1716.1,1715.9,1.01251742]
[1693402661499,11.655,1716.0,1715.7,10.17579466]
[1693402661713,14.52848065,1716.0,1715.8,1.01257987]
[1693402661964,14.52848065,1716.0,1715.7,5.82849]
[1693402662460,5.82726,1716.1,1715.8,1.01255481]
[1693402662672,8.70074065,1716.1,1715.9,5.82784]
[1693402662956,8.70074065,1716.1,1715.6,5.82867]
[1693402662957,5.82791,1715.9,1715.6,5.82867]
[1693402663142,5.82791,1715.9,1715.5,6.43710386]
[1693402663143,20.35710065,1715.9,1715.5,6.43710386]
[1693402663348,5.82858,1715.7,1715.5,11.6584]
[1693402663524,2.87348065,1715.6,1715.4,3.14444236]
[1693402663720,11.65725,1715.7,1715.5,1.01273224]
[1693402663947,5.82766,1716.0,1715.5,22.17404888]
[1693402664111,8.70114065,1716.0,1715.7,5.82829]
[1693402664449,14.52890065,1716.0,1715.7,5.82829]
[1693402664964,2.87348065,1715.9,1715.4,1.0174403]
[1693402665169,17.48505,1715.8,1715.4,1.0174403]
[1693402665371,3.0,1715.5,1715.4,1.0174403]
[1693402665586,3.0,1714.9,1714.8,0.0057665]
[1693402665792,3.0,1714.9,1714.6,0.1]
[1693402666005,3.0,1714.9,1714.3,2.76789748]
[1693402666006,3.0,1714.4,1714.3,2.76789748]
[1693402666304,28.97712221,1714.4,1713.8,2.51450152]
[1693402666433,28.97712221,1714.4,1713.4,3.12634291]
[1693402666434,2.87348065,1713.5,1713.4,3.12634291]
[1693402666641,2.87348065,1713.5,1713.4,2.23163017]
[1693402666841,1.25227238,1713.5,1713.4,2.74831288]
[1693402667093,5.83419,1714.1,1713.6,0.60959975]
[1693402667254,2.87348065,1714.0,1713.6,5.94495975]
[1693402667596,11.52,1714.4,1713.7,0.59449597]
[1693402667743,11.52,1714.4,1713.6,11.78061975]
[1693402667744,3.0,1714.3,1713.6,0.10959975]
[1693402667944,5.83399,1714.1,1713.6,0.10959975]
[1693402668260,5.8344,1714.0,1713.1,3.0]
[1693402668470,5.8344,1714.0,1713.4,5.83632]
[1693402668471,11.6688,1714.0,1713.4,5.83632]
[1693402668677,5.8346,1714.0,1713.4,5.83619]
[1693402668977,5.83353,1714.3,1713.4,14.50483619]
[1693402669205,11.52,1714.4,1713.8,17.50455]
[1693402669396,11.52,1714.4,1714.0,2.827]
[1693402669540,11.52,1714.4,1714.1,17.50167]
[1693402669749,11.52,1714.4,1714.1,19.534537]
[1693402669987,23.18601,1714.4,1713.9,2.1858]
[1693402670189,11.52,1714.4,1713.9,5.1858]
[1693402670345,11.52,1714.4,1714.0,38.48]
[1693402670542,11.52,1714.4,1714.0,40.83427]
[1693402670543,17.35306,1714.4,1714.0,40.83427]
[1693402670741,3.0,1714.1,1713.6,0.58235117]
[1693402670940,3.0,1714.1,1713.2,7.41851]
[1693402670941,20.5034,1714.0,1713.2,8.66397]
[1693402671268,5.83536,1713.7,1713.2,8.66397]
[1693402671464,3.0,1714.0,1713.4,2.827]
[1693402671654,8.83461,1714.0,1713.6,8.66253]
[1693402671848,5.83461,1714.0,1713.6,9.528783]
[1693402672064,3.0,1714.1,1713.6,0.58235117]
[1693402672241,11.66869,1714.0,1713.3,2.827]
[1693402672442,14.66869,1714.0,1713.3,2.827]
[1693402672686,3.0,1713.8,1713.2,2.5718]
[1693402672889,3.0,1713.6,1712.9,30.08]
[1693402673089,11.67276,1713.4,1712.9,3.64788]
[1693402673300,14.54624065,1713.4,1712.9,0.1]
[1693402673501,0.3,1713.5,1713.0,3.02482449]
[1693402673658,5.83504,1713.8,1713.4,2.827]
[1693402674014,11.52,1714.4,1713.7,5.83532]
[1693402674149,11.52,1714.4,1714.1,2.827]
[1693402674359,11.52,1714.4,1714.3,2.827]
[1693402674583,11.52,1714.4,1714.1,8.66081]
[1693402674584,11.52,1714.4,1714.2,5.83361]
[1693402674759,11.52,1714.4,1714.3,5.83328]
[1693402675352,5.83194,1714.7,1714.3,6.31328]
[1693402675774,8.56046864,1714.9,1714.3,7.527969]
[1693402675981,2.72904864,1714.9,1714.7,5.83192]
[1693402676393,2.72904864,1714.9,1714.8,2.827]
[1693402676608,2.72904864,1714.9,1714.5,2.827]
[1693402676745,2.72904864,1714.9,1714.5,8.65954]
[1693402676746,8.56028864,1714.9,1714.5,8.65954]
[1693402676951,7.59695174,1714.9,1714.5,8.65954]
[1693402677256,6.68726886,1714.9,1714.5,2.827]
[1693402677562,15.51850886,1714.9,1714.2,2.6191]
[1693402677763,16.10086003,1714.9,1714.2,2.6191]
[1693402677967,12.51850886,1714.9,1714.2,14.28634]
[1693402678176,12.51850886,1714.9,1714.2,25.691065]
[1693402678177,5.83215,1714.7,1714.2,25.691065]
[1693402678391,6.68726886,1714.9,1714.4,2.827]
[1693402678551,8.70516065,1714.8,1714.4,8.65964]
[1693402678877,14.53684065,1714.8,1714.4,8.65964]
[1693402679189,14.53684065,1714.8,1714.4,2.827]
[1693402679394,1.45368407,1714.7,1714.2,8.45263]
[1693402679588,14.53818065,1714.6,1714.2,2.6191]
[1693402680865,20.37061065,1714.6,1714.2,2.6191]
[1693402681092,20.37061065,1714.6,1714.0,2.827]
[1693402681392,23.37061065,1714.6,1714.0,2.827]
[1693402681696,23.37311065,1714.4,1713.8,29.98]
[1693402681879,23.37311065,1714.4,1713.6,2.4858]
[1693402681880,11.66798,1714.1,1713.6,2.4858]
[1693402682080,2.87348065,1714.0,1713.6,2.4858]
[1693402682286,17.50406,1713.9,1713.6,2.4858]
[1693402682479,2.87348065,1713.8,1713.4,2.827]
[1693402682681,17.50617,1713.7,1713.0,8.66459]
[1693402682889,17.50617,1713.7,1713.0,8.66453]
[1693402682890,5.83613,1713.5,1713.0,8.66453]
[1693402683107,20.38174065,1713.5,1713.0,2.827]
[1693402683271,2.87348065,1713.4,1713.0,0.23079524]
[1693402683602,20.38373065,1713.3,1713.0,0.23079524]
[1693402683764,14.54698065,1713.3,1713.0,0.23079524]
[1693402683964,8.71023065,1713.3,1713.0,0.23079524]
[1693402684295,5.83541,1713.7,1713.1,8.939]
[1693402684510,5.83541,1713.7,1713.2,5.83675]
[1693402684511,5.83567,1713.6,1713.2,5.83675]
[1693402684708,8.70915065,1713.6,1713.2,5.83675]
[1693402684910,3.0,1714.1,1713.3,2.827]
[1693402685212,3.0,1714.1,1713.2,17.51081]
[1693402685213,14.54230065,1714.0,1713.6,2.827]
[1693402685411,16.57994671,1714.0,1713.6,5.83564]
[1693402685725,5.83434,1714.0,1713.6,5.83564]
[1693402686014,11.66744,1714.2,1713.6,20.33396]
[1693402686209,8.70761065,1714.1,1713.6,20.33396]
[1693402686413,14.54174065,1714.1,1713.6,20.33396]
[1693402686615,14.54174065,1714.1,1713.6,8.66264]
[1693402686801,1.45417407,1714.0,1713.5,5.83582]
[1693402687019,11.66955,1713.9,1713.5,5.83582]
[1693402687388,2.87348065,1713.8,1713.4,5.83617]
[1693402687627,5.83518,1713.8,1713.4,11.6725]
[1693402687927,11.67036,1713.8,1713.4,5.83616]
[1693402688130,16.29435065,1713.8,1713.4,5.83616]
[1693402688336,2.87348065,1713.7,1712.9,0.682]
[1693402688630,17.5084,1713.5,1712.9,8.60635]
[1693402688800,11.67366,1713.3,1713.0,0.23079524]
[1693402689315,5.83681,1713.3,1713.0,0.23079524]
[1693402689519,5.83681,1713.3,1713.0,6.06848524]
[1693402689724,2.87348065,1713.2,1713.0,0.23079524]
[1693402690028,21.83946472,1713.2,1713.0,0.23079524]
[1693402690231,2.87348065,1713.1,1713.0,0.23079524]
[1693402690450,14.54822065,1713.1,1713.0,0.23079524]
[1693402690609,14.54822065,1713.1,1712.9,0.1]
[1693402690610,20.38559065,1713.1,1712.9,0.1]
[1693402690815,2.87348065,1713.0,1712.9,0.1]
[1693402690995,3.0,1712.6,1712.5,2.29055284]
[1693402691195,2.87348065,1712.6,1712.5,1.78885824]
[1693402691397,23.39069065,1712.6,1712.5,8.24e-06]
[1693402691620,3.0,1712.4,1712.1,0.1]
[1693402691895,3.0,1712.4,1711.4,35.92298]
[1693402691896,3.0,1711.8,1711.4,0.1]
[1693402692119,29.36036,1712.3,1710.7,0.0057665]
[1693402692120,3.0,1710.9,1710.7,0.0057665]
[1693402692341,2.87348065,1711.5,1710.3,0.007]
[1693402692342,3.0,1710.4,1710.3,0.007]
[1693402692662,3.0,1710.4,1708.7,30.5908788]
[1693402692663,8.87348065,1710.8,1707.2,0.89873409]
[1693402692664,3.0,1707.9,1707.2,0.89873409]
[1693402692879,3.0,1707.9,1707.8,1.4471478]
[1693402692880,12.0,1707.9,1707.8,1.4471478]
[1693402693172,12.0,1707.9,1707.5,3.59355831]
[1693402693173,15.25928,1707.9,1707.5,3.59355831]
[1693402693352,3.14443869,1707.9,1707.5,3.59355831]
[1693402693552,19.28343559,1708.1,1707.6,0.89853083]
[1693402693868,19.28343559,1708.1,1706.3,6.02657727]
[1693402693869,1.0,1708.5,1706.3,32.52703224]
[1693402694161,1.0,1708.5,1705.5,1.79900126]
[1693402694162,2.9,1706.4,1704.2,0.89299002]
[1693402694365,20.69522,1707.9,1705.3,6.112]
[1693402694530,8.344509,1708.1,1706.5,35.15964]
[1693402694531,2.344509,1708.1,1706.5,35.15964]
[1693402694722,0.96478476,1708.4,1707.5,0.1]
[1693402694921,0.96478476,1708.4,1706.6,3.515964]
[1693402694922,1.0,1708.5,1707.0,41.00635]
[1693402695245,3.0,1708.3,1707.0,29.29025]
[1693402695443,3.0,1708.1,1707.0,11.7161]
[1693402695643,0.75167395,1708.2,1707.0,11.7161]
[1693402695846,0.393,1708.5,1707.0,11.7161]
[1693402696020,0.393,1708.5,1707.3,3.549]
[1693402696216,3.0,1708.0,1707.6,5.85596]
[1693402696414,6.0,1708.1,1707.4,0.87013443]
[1693402696415,5.85473,1708.1,1707.4,0.87013443]
[1693402696616,3.0,1707.9,1707.4,5.85685]
[1693402696923,3.0,1709.0,1707.8,3.549]
[1693402697146,5.8515,1709.0,1707.9,5.85514]
[1693402697348,9.0,1708.9,1707.9,11.5671823]
[1693402697546,3.0,1708.2,1707.9,5.7120423]
[1693402697757,9.0,1708.2,1707.9,5.7120423]
[1693402698133,9.0,1708.1,1708.0,0.48]
[1693402698334,9.0,1708.2,1708.0,5.8548]
[1693402698633,3.0,1708.9,1708.0,19.188588]
[1693402698834,3.0,1708.9,1708.3,17.56089]
[1693402699368,6.0,1708.8,1708.5,11.70582]
[1693402699588,6.0,1709.1,1708.6,0.48]
[1693402699787,9.0,1708.9,1708.7,5.85223]
[1693402700106,9.0,1708.9,1708.2,5.85391]
[1693402700400,9.0,1708.7,1708.5,5.85303]
[1693402700550,9.0,1708.5,1708.0,5.85451]
[1693402700762,9.0,1708.2,1708.0,5.85475]
[1693402701108,3.0,1708.5,1707.9,11.71028]
[1693402701250,6.0,1708.6,1707.9,11.71028]
[1693402701251,6.0,1708.8,1707.9,11.71028]
[1693402701578,6.0,1709.5,1708.1,5.828]
[1693402701901,6.0,1709.5,1707.8,11.71067]
[1693402701902,0.0056979,1709.7,1708.5,35.09305]
[1693402702065,0.0056979,1709.7,1708.6,3.509305]
[1693402702277,0.0056979,1709.7,1708.9,29.23444]
[1693402702457,0.0056979,1709.7,1709.3,5.828]
[1693402702667,0.0056979,1709.7,1709.4,26.87972]
[1693402702857,0.0056979,1709.7,1709.4,18.02979]
[1693402703086,0.0056979,1709.7,1709.4,6.32993]
[1693402703404,6.0056979,1709.7,1709.5,0.48]
[1693402703557,6.0,1709.3,1709.0,5.85134]
[1693402703894,6.0,1709.0,1708.9,5.85161]
[1693402704092,9.0,1708.9,1708.2,5.85407]
[1693402704293,9.0,1708.9,1708.6,5.85272]
[1693402704460,6.0,1708.7,1708.6,5.85262]
[1693402704662,6.0,1708.5,1708.2,5.85384]
[1693402705076,6.0,1708.5,1708.3,5.85377]
[1693402705501,9.0,1708.5,1708.3,5.85377]
[1693402705698,9.0,1708.5,1707.6,6.112]
[1693402705699,5.994133,1708.1,1707.4,0.582]
[1693402705855,5.988266,1708.1,1708.0,5.85474]
[1693402706053,5.988266,1708.5,1708.0,11.70954]
[1693402706256,8.988266,1708.5,1708.0,11.70954]
[1693402706657,5.988266,1708.3,1708.0,13.465981]
[1693402707471,5.988266,1708.9,1708.1,9.112]
[1693402707707,5.988266,1708.9,1708.3,23.41458]
[1693402707999,5.988266,1708.8,1708.4,3.48]
[1693402708197,5.988266,1709.2,1708.5,17.55903]
[1693402708501,5.988266,1709.1,1708.7,11.70454]
[1693402708800,5.988266,1709.1,1708.7,17.5572]
[1693402708971,5.988266,1708.8,1708.7,5.8524]
[1693402709175,5.988266,1708.9,1708.7,11.7048]
[1693402709381,5.988266,1708.8,1708.7,5.8524]
[1693402709575,5.988266,1708.8,1708.7,11.7048]
[1693402709776,5.988266,1709.2,1708.7,13.460551]
[1693402709996,5.988266,1709.5,1708.7,13.460551]
[1693402710178,5.9939639,1709.7,1709.0,17.50339]
[1693402710381,0.0056979,1709.7,1709.0,17.50339]
[1693402710591,5.9939639,1709.7,1709.2,23.40164]
[1693402710827,0.0056979,1709.7,1709.4,17.54979]
[1693402711127,0.0056979,1709.7,1709.6,11.69864]
[1693402711326,0.0056979,1709.7,1709.6,5.84932]
[1693402711532,0.0056979,1709.7,1709.6,11.69864]
[1693402711688,5.988266,1710.0,1709.6,11.69864]
[1693402711895,3.0,1710.3,1709.6,11.69864]
[1693402711896,5.773366,1710.3,1709.7,1.16632406]
[1693402712117,8.84411,1711.2,1709.9,5.828]
[1693402712118,5.773366,1710.5,1709.9,5.828]
[1693402712325,5.773366,1711.0,1710.2,17.54088]
[1693402712507,5.773366,1711.3,1710.3,8.828]
[1693402712712,5.773366,1711.6,1710.6,23.3836]
[1693402713001,5.773366,1711.6,1710.7,4.756441]
[1693402713211,5.773366,1711.5,1711.0,23.37812]
[1693402713398,5.773366,1711.5,1711.1,0.48]
[1693402713708,0.3,1711.7,1711.2,23.37519]
[1693402713709,5.773366,1711.7,1711.2,23.37519]
[1693402713894,1.6261378,1711.8,1711.3,3.48]
[1693402714123,1.6261378,1711.8,1711.4,23.71996]
[1693402714434,1.6261378,1711.8,1711.6,17.52744]
[1693402714637,5.83947,1712.5,1711.6,17.52744]
[1693402714638,5.773366,1712.5,1711.6,23.36992]